fUST/lending_fUST_20251230
["ID","MTS","AMOUNT","RATE_DAILY","PERIOD"]
[400053199,1767053457787,-168.57562721,0.00036274,30]
[400053200,1767053457797,-996.83,0.00036365,60]
[400053201,1767053457807,-1000.0,0.000364,24]
[400053202,1767053457816,-200.0,0.00036437,10]
[400053203,1767053457826,-5000.0,0.00036437,15]
[400053204,1767053457836,-1517.79,0.00036438,40]
[400053205,1767053457845,-786.798742,0.00036438,31]
[400053206,1767053457856,-156.404391,0.00036438,31]
[400053207,1767053457866,-786.798742,0.00036438,31]
[400053208,1767053457876,-786.798742,0.00036438,31]
[400053209,1767053457886,-786.798742,0.00036438,31]
[400053210,1767053457895,-151.0,0.00036438,31]
[400053211,1767053457904,-151.0,0.00036438,31]
[400053212,1767053457914,-262.841748,0.00036438,31]
[400053213,1767053457923,-322.881004,0.00036438,31]
[400053214,1767053457933,-151.0,0.00036438,31]
[400053215,1767053457943,-322.881004,0.00036438,31]
[400053216,1767053457953,-322.881004,0.00036438,31]
[400053217,1767053457963,-322.881004,0.00036438,31]
[400053218,1767053457972,-167.502473,0.00036438,31]
[400053219,1767053457983,-167.502473,0.00036438,31]
[400053220,1767053457993,-167.502473,0.00036438,31]
[400053221,1767053458002,-167.502473,0.00036438,31]
[400053222,1767053458011,-500.0,0.0003645,30]
[400053223,1767053458020,-500.0,0.0003645,30]
[400053224,1767053458030,-500.0,0.0003645,30]
[400053225,1767053458040,-500.0,0.0003645,30]
[400053226,1767053458050,-500.0,0.0003645,30]
[400053227,1767053458060,-500.0,0.0003645,30]
[400053228,1767053458070,-500.0,0.0003645,30]
[400053229,1767053458079,-500.0,0.0003645,30]
[400053230,1767053458089,-500.0,0.0003645,30]
[400053231,1767053458101,-500.0,0.0003645,30]
[400053232,1767053458111,-500.0,0.0003645,30]
[400053233,1767053458122,-500.0,0.0003645,30]
[400053234,1767053458132,-1000.0,0.00036462,14]
[400053235,1767053458142,-996.83,0.00036465,60]
[400053236,1767053458151,-1802.09,0.000365,30]
[400053237,1767053458160,-200.0,0.00036558,120]
[400053238,1767053458170,-996.83,0.00036565,60]
[400053239,1767053458180,-1207.08,0.000366,7]
[400053240,1767053458190,-673.45,0.00036622,30]
[400053241,1767053458199,-168.57562721,0.00036658,30]
[400053242,1767053458208,-2011.91929744,0.00036661,2]
[400053243,1767053458218,-996.83,0.00036665,60]
[400053244,1767053458228,-377.3687661,0.00036685,30]
[400053245,1767053458237,-376.253583,0.00036685,30]
[400053246,1767053458247,-376.253583,0.00036685,30]
[400053247,1767053458256,-338.2114975,0.0003669,7]
[400053248,1767053458265,-996.83,0.00036765,60]
[400053249,1767053458275,-2011.91929744,0.00036815,2]
[400053250,1767053458285,-303.3053281,0.00036822,30]
[400053251,1767053458295,-204.8804204,0.00036822,30]
[400053252,1767053458304,-335.3569546,0.00036822,30]
[400053253,1767053458314,-193.282872,0.00036822,30]
[400053254,1767053458324,-303.3053281,0.00036822,30]
[400053255,1767053458337,-303.3053281,0.00036822,30]
[400053256,1767053458346,-153.0,0.00036822,30]
[400053257,1767053458356,-193.282872,0.00036822,30]
[400053258,1767053458366,-611.7768493,0.00036822,30]
[400053259,1767053458377,-193.282872,0.00036822,30]
[400053260,1767053458387,-996.83,0.00036865,60]
[400053261,1767053458397,-1000.0,0.000369,24]
[400053262,1767053458406,-5000.0,0.00036925,15]
[400053263,1767053458417,-1000.0,0.00036958,14]
[400053264,1767053458427,-996.83,0.00036965,60]
[400053265,1767053458436,-5000.0,0.00036985,5]
[400053266,1767053458445,-5000.0,0.00036985,15]
[400053267,1767053458454,-1517.79,0.00036986,41]
[400053268,1767053458463,-650.0,0.00036986,5]
[400053269,1767053458473,-5000.0,0.00036999,2]
[400053270,1767053458482,-1136.67682311,0.00037,120]
[400053271,1767053458492,-1000.0,0.00037,120]
[400053272,1767053458501,-321.5,0.00037,30]
[400053273,1767053458511,-168.57562721,0.00037041,30]
[400053274,1767053458520,-996.83,0.00037065,60]
[400053275,1767053458530,-996.83,0.00037165,60]
[400053276,1767053458539,-127741.90399964,0.00037188,7]
[400053277,1767053458549,-996.83,0.00037265,60]
[400053278,1767053458558,-474.0,0.00037273,120]
[400053279,1767053458567,-5000.0,0.00037275,15]
[400053280,1767053458576,-5000.0,0.00037275,15]
[400053281,1767053458586,-5000.0,0.00037284,15]
[400053282,1767053458595,-5000.0,0.00037298,15]
[400053283,1767053458606,-151.0,0.00037305,31]
[400053284,1767053458615,-151.0,0.00037305,31]
[400053285,1767053458625,-67735.5,0.00037335,18]
[400053286,1767053458635,-151.0,0.00037335,31]
[400053287,1767053458644,-996.98,0.00037365,60]
[400053288,1767053458653,-5000.0,0.00037388,15]
[400053289,1767053458662,-5000.0,0.00037388,15]
[400053290,1767053458671,-5000.0,0.00037388,15]
[400053291,1767053458681,-151.0,0.00037388,63]
[400053292,1767053458691,-151.0,0.00037388,63]
[400053293,1767053458701,-1133.01955115,0.00037388,63]
[400053294,1767053458710,-250.0,0.00037388,63]
[400053295,1767053458721,-151.0,0.00037388,63]
[400053296,1767053458731,-2000.0,0.00037388,63]
[400053297,1767053458740,-250.0,0.00037388,63]
[400053298,1767053458750,-151.0,0.00037388,63]
[400053299,1767053458760,-151.0,0.00037388,63]
[400053300,1767053458770,-151.0,0.00037388,63]
[400053301,1767053458780,-2074.0,0.00037388,63]
[400053302,1767053458790,-151.04094057,0.00037388,63]
[400053303,1767053458800,-151.0,0.00037388,63]
[400053304,1767053458810,-250.0,0.00037388,63]
[400053305,1767053458820,-151.0,0.00037388,63]
[400053306,1767053458830,-2150.738,0.00037388,63]
[400053307,1767053458839,-250.0,0.00037388,63]
[400053308,1767053458849,-151.62141299,0.00037388,63]
[400053309,1767053458858,-151.0,0.00037388,63]
[400053310,1767053458868,-2230.315306,0.00037388,63]
[400053311,1767053458877,-250.0,0.00037388,63]
[400053312,1767053458887,-500.0,0.00037388,63]
[400053313,1767053458896,-151.0,0.00037388,63]
[400053314,1767053458905,-500.0,0.00037388,63]
[400053315,1767053458915,-2312.83697232,0.00037388,63]
[400053316,1767053458925,-500.0,0.00037388,63]
[400053317,1767053458934,-151.0,0.00037388,63]
[400053318,1767053458944,-2398.4119403,0.00037388,63]
[400053319,1767053458953,-500.0,0.00037388,63]
[400053320,1767053458964,-505.7630867,0.00037388,63]
[400053321,1767053458973,-151.0,0.00037388,63]
[400053322,1767053458983,-151.0,0.00037388,63]
[400053323,1767053458993,-2487.15318209,0.00037388,63]
[400053324,1767053459002,-500.0,0.00037388,63]
[400053325,1767053459012,-151.0,0.00037388,63]
[400053326,1767053459023,-500.0,0.00037388,63]
[400053327,1767053459033,-2579.17784983,0.00037388,63]
[400053328,1767053459043,-500.0,0.00037388,63]
[400053329,1767053459053,-183.83210402,0.00037388,63]
[400053330,1767053459146,-2674.60743027,0.00037388,63]
[400053331,1767053459156,-500.0,0.00037388,63]
[400053332,1767053459166,-250.0,0.00037388,63]
[400053333,1767053459176,-151.0,0.00037388,63]
[400053334,1767053459186,-500.0,0.00037388,63]
[400053335,1767053459196,-500.0,0.00037388,63]
[400053336,1767053459209,-250.0,0.00037388,63]
[400053337,1767053459218,-500.0,0.00037388,63]
[400053338,1767053459230,-151.0,0.00037388,63]
[400053339,1767053459240,-500.0,0.00037388,63]
[400053340,1767053459250,-250.0,0.00037388,63]
[400053341,1767053459259,-151.0,0.00037388,63]
[400053342,1767053459268,-250.0,0.00037388,63]
[400053343,1767053459278,-500.0,0.00037388,63]
[400053344,1767053459288,-250.0,0.00037388,63]
[400053345,1767053459297,-414.0,0.00037388,63]
[400053346,1767053459306,-500.0,0.00037388,63]
[400053347,1767053459315,-151.0,0.00037388,63]
[400053348,1767053459324,-429.318,0.00037388,63]
[400053349,1767053459337,-500.0,0.00037388,63]
[400053350,1767053459347,-156.587,0.00037388,63]
[400053351,1767053459357,-445.202766,0.00037388,63]
[400053352,1767053459366,-151.0,0.00037388,63]
[400053353,1767053459376,-500.0,0.00037388,63]
[400053354,1767053459386,-162.380719,0.00037388,63]
[400053355,1767053459396,-461.67526834,0.00037388,63]
[400053356,1767053459407,-151.0,0.00037388,63]
[400053357,1767053459419,-500.0,0.00037388,63]
[400053358,1767053459429,-168.3888056,0.00037388,63]
[400053359,1767053459438,-151.0,0.00037388,63]
[400053360,1767053459448,-500.0,0.00037388,63]
[400053361,1767053459458,-250.0,0.00037388,63]
[400053362,1767053459467,-168.3888056,0.00037388,63]
[400053363,1767053459477,-478.75725327,0.00037388,63]
[400053364,1767053459486,-500.0,0.00037388,63]
[400053365,1767053459496,-250.0,0.00037388,63]
[400053366,1767053459505,-496.47127164,0.00037388,63]
[400053367,1767053459514,-500.0,0.00037388,63]
[400053368,1767053459524,-250.0,0.00037388,63]
[400053369,1767053459534,-514.84070869,0.00037388,63]
[400053370,1767053459543,-500.0,0.00037388,63]
[400053371,1767053459552,-533.88981491,0.00037388,63]
[400053372,1767053459562,-500.0,0.00037388,63]
[400053373,1767053459571,-553.64373807,0.00037388,63]
[400053374,1767053459581,-500.0,0.00037388,63]
[400053375,1767053459590,-151.0,0.00037388,63]
[400053376,1767053459600,-574.12855637,0.00037388,63]
[400053377,1767053459610,-500.0,0.00037388,63]
[400053378,1767053459620,-151.0,0.00037388,63]
[400053379,1767053459630,-160.0,0.00037388,63]
[400053380,1767053459639,-595.37131296,0.00037388,63]
[400053381,1767053459649,-151.0,0.00037388,63]
[400053382,1767053459658,-500.0,0.00037388,63]
[400053383,1767053459668,-160.0,0.00037388,63]
[400053384,1767053459678,-151.0,0.00037388,63]
[400053385,1767053459688,-617.40005154,0.00037388,63]
[400053386,1767053459697,-500.0,0.00037388,63]
[400053387,1767053459707,-269.08488439,0.00037388,63]
[400053388,1767053459717,-640.24385345,0.00037388,63]
[400053389,1767053459727,-500.0,0.00037388,63]
[400053390,1767053459736,-663.93287602,0.00037388,63]
[400053391,1767053459746,-500.0,0.00037388,63]
[400053392,1767053459756,-643.34624238,0.00037388,63]
[400053393,1767053459766,-646.41620321,0.00037388,63]
[400053394,1767053459775,-1000.0,0.000374,24]
[400053395,1767053459785,-168.57562721,0.00037425,30]
[400053396,1767053459795,-5000.0,0.00037448,15]
[400053397,1767053459804,-172.576134,0.00037453,31]
[400053398,1767053459819,-5000.0,0.00037453,7]
[400053399,1767053459840,-5000.0,0.00037453,15]
[400053400,1767053459856,-454.12303575,0.00037454,14]
[400053401,1767053459868,-152.0,0.00037454,14]
[400053402,1767053459879,-346.0,0.00037454,14]
[400053403,1767053459890,-152.0,0.00037454,14]
[400053404,1767053459902,-326.17108693,0.00037454,14]
[400053405,1767053459914,-152.0,0.00037454,14]
[400053406,1767053459924,-152.0,0.00037454,14]
[400053407,1767053459934,-152.0,0.00037454,14]
[400053408,1767053459943,-152.0,0.00037454,14]
[400053409,1767053459952,-155.0,0.00037454,14]
[400053410,1767053459962,-152.0,0.00037454,14]
[400053411,1767053459971,-155.0,0.00037454,14]
[400053412,1767053459981,-152.0,0.00037454,14]
[400053413,1767053459991,-155.0,0.00037454,14]
[400053414,1767053460000,-155.0,0.00037454,14]
[400053415,1767053460010,-152.0,0.00037454,14]
[400053416,1767053460019,-155.0,0.00037454,14]
[400053417,1767053460029,-152.0,0.00037454,14]
[400053418,1767053460038,-152.0,0.00037454,14]
[400053419,1767053460048,-171.63752996,0.00037454,14]
[400053420,1767053460058,-152.0,0.00037454,14]
[400053421,1767053460068,-152.0,0.00037454,14]
[400053422,1767053460077,-152.0,0.00037454,14]
[400053423,1767053460087,-152.0,0.00037454,14]
[400053424,1767053460096,-152.0,0.00037454,14]
[400053425,1767053460106,-152.0,0.00037454,14]
[400053426,1767053460115,-152.0,0.00037454,14]
[400053427,1767053460124,-264.0,0.00037454,14]
[400053428,1767053460135,-727.1241338,0.00037454,14]
[400053429,1767053460144,-2000.0,0.00037474,7]
[400053430,1767053460153,-151.0,0.00037505,31]
[400053431,1767053460163,-151.0,0.00037505,31]
[400053432,1767053460172,-151.0,0.00037505,31]
[400053433,1767053460181,-151.0,0.00037505,31]
[400053434,1767053460191,-151.0,0.00037505,31]
[400053435,1767053460200,-151.0,0.00037505,31]
[400053436,1767053460210,-153.308726,0.00037505,31]
[400053437,1767053460219,-290.92683,0.00037505,31]
[400053438,1767053460229,-153.304838,0.00037505,31]
[400053439,1767053460238,-151.0,0.00037505,31]
[400053440,1767053460248,-151.0,0.00037505,31]
[400053441,1767053460257,-151.0,0.00037505,31]
[400053442,1767053460266,-151.0,0.00037505,31]
[400053443,1767053460276,-151.0,0.00037505,31]
[400053444,1767053460286,-151.0,0.00037505,31]
[400053445,1767053460295,-151.0,0.00037505,31]
[400053446,1767053460305,-151.0,0.00037505,31]
[400053447,1767053460315,-151.0,0.00037505,31]
[400053448,1767053460324,-151.0,0.00037505,31]
[400053449,1767053460337,-151.0,0.00037505,31]
[400053450,1767053460346,-151.0,0.00037505,31]
[400053451,1767053460356,-151.0,0.00037505,31]
[400053452,1767053460366,-151.0,0.00037505,31]
[400053453,1767053460377,-151.0,0.00037505,31]
[400053454,1767053460387,-151.0,0.00037505,31]
[400053455,1767053460396,-151.0,0.00037505,31]
[400053456,1767053460408,-151.0,0.00037505,31]
[400053457,1767053460418,-151.0,0.00037505,31]
[400053458,1767053460428,-151.0,0.00037505,31]
[400053459,1767053460438,-151.0,0.00037505,31]
[400053460,1767053460448,-151.0,0.00037505,31]
[400053461,1767053460458,-167.905055,0.00037505,31]
[400053462,1767053460468,-151.0,0.00037505,31]
[400053463,1767053460478,-151.0,0.00037505,31]
[400053464,1767053460488,-151.0,0.00037505,31]
[400053465,1767053460497,-151.0,0.00037505,31]
[400053466,1767053460506,-151.0,0.00037505,31]
[400053467,1767053460516,-151.0,0.00037505,31]
[400053468,1767053460525,-151.0,0.00037505,31]
[400053469,1767053460534,-369.45078564,0.0003753,120]
[400053470,1767053460544,-1517.79,0.00037534,42]
[400053471,1767053460554,-15277.58765547,0.00037535,2]
[400053472,1767053460563,-10000.0,0.00037543,2]
[400053473,1767053460574,-150.58,0.00037549,60]
[400053474,1767053460583,-2242.88,0.00037549,60]
[400053475,1767053460593,-568.03691626,0.00037635,120]
[400053476,1767053460603,-150.0,0.00037635,2]
[400053477,1767053460612,-105165.94574604,0.00037635,2]
[400053478,1767053460622,-92181.16454804,0.00037635,2]
[400053479,1767053460633,-300.0,0.00037635,2]
[400053480,1767053460642,-22886.66153658,0.00037635,2]
[400053481,1767053460652,-3922.11641119,0.00037635,2]
[400053482,1767053460661,-817.82319042,0.00037635,2]
[400053483,1767053460670,-346.94779432,0.00037635,2]
[400053484,1767053460680,-260.76238412,0.00037635,2]
[400053485,1767053460690,-330.20064876,0.00037635,2]
[400053486,1767053460699,-294.6961945,0.00037635,2]
[400053487,1767053460708,-52229.80641386,0.00037635,2]
[400053488,1767053460717,-643.47399719,0.00037635,2]
[400053489,1767053460726,-1375.16059525,0.00037635,2]
[400053490,1767053460736,-158.14940888,0.00037635,2]
[400053491,1767053460746,-709.4219224,0.00037635,2]
[400053492,1767053460755,-21785.42483752,0.00037635,2]
[400053493,1767053460765,-6361.14434991,0.00037635,2]
[400053494,1767053460774,-159.15849563,0.00037635,2]
[400053495,1767053460784,-1734.01903999,0.00037635,2]
[400053496,1767053460793,-7556.37910245,0.00037635,2]
[400053497,1767053460803,-2096.69808168,0.00037635,2]
[400053498,1767053460812,-57241.75305768,0.00037635,2]
[400053499,1767053460822,-512.45753818,0.00037635,2]
[400053500,1767053460897,-185.64177487,0.00037635,2]
[400053501,1767053460915,-472.34460369,0.00037635,2]
[400053502,1767053460924,-30744.92995238,0.00037635,2]
[400053503,1767053460935,-190.95145346,0.00037635,2]
[400053504,1767053460945,-1206.40283915,0.00037635,2]
[400053505,1767053460954,-1410.10954421,0.00037635,2]
[400053506,1767053460964,-5953.9551908,0.00037635,2]
[400053507,1767053460973,-204.88282811,0.00037635,2]
[400053508,1767053460982,-657.33544642,0.00037635,2]
[400053509,1767053460991,-2920.0,0.00037635,2]
[400053510,1767053461001,-200.02195166,0.00037635,2]
[400053511,1767053461011,-203.24435556,0.00037635,2]
[400053512,1767053461020,-3177.90989349,0.00037635,2]
[400053513,1767053461030,-168.14029914,0.00037635,2]
[400053514,1767053461039,-151.7583231,0.00037635,2]
[400053515,1767053461049,-178861.30880916,0.00037635,2]
[400053516,1767053461058,-260.97432664,0.00037635,2]
[400053517,1767053461068,-3803.03116694,0.00037635,2]
[400053518,1767053461077,-675.36218608,0.00037635,2]
[400053519,1767053461086,-618.0,0.00037635,2]
[400053520,1767053461096,-1676.11976878,0.00037635,2]
[400053521,1767053461106,-326.71948423,0.00037635,2]
[400053522,1767053461115,-100831.5604011,0.00037635,2]
[400053523,1767053461246,-1354.10611933,0.00027671,2]
[400053524,1767053461256,-12202.5878189,0.00037635,2]
[400053525,1767053461550,-0.00595418,0.000189,2]
[400053526,1767053461561,-269.247383,0.000189,2]
[400053527,1767053461705,-33.79514876,0.000189,2]
[400053528,1767053461715,-303.04848594,0.00019089,2]
[400053529,1767053461725,-303.04848594,0.00019278,2]
[400053530,1767053461735,-450.47925231,0.00019467,2]
[400053531,1767053461744,-3790.93147808,0.00020211,2]
[400053532,1767053461754,-151.0,0.000249,7]
[400053533,1767053461764,-1354.10611933,0.00027945,2]
[400053534,1767053461775,-1354.33260796,0.00028219,2]
[400053535,1767053461785,-151.0,0.00034245,31]
[400053536,1767053461794,-376.253583,0.00036685,30]
[400053537,1767053461804,-151.0,0.00037335,31]
[400053538,1767053461814,-1704.23678868,0.00037635,2]
[400053539,1767053461837,-12400.12131,0.00037635,2]
[400053540,1767053461851,-4963.16512439,0.00037635,2]
[400053541,1767053461860,-4387.69308652,0.00037635,5]
[400053542,1767053621758,-843.42321988,0.00013183,2]
[400053543,1767053624350,-447.61806807,0.00013183,2]
[400053544,1767053631565,-264.32,0.00013183,2]
[400053545,1767053638424,-268.0,0.00013183,2]
[400053547,1767053695912,537.87,0.00028767,120]
[400053548,1767053703553,10000.0,0.00028767,120]
[400053549,1767053744197,4500.0,0.00028767,120]
[400053550,1767053816675,-484.6012755,0.00013181,2]
[400053551,1767053818675,-296.11339274,0.00013181,2]
[400053552,1767053823681,-414.87972018,0.00013181,2]
[400053553,1767053825207,-176.12863258,0.00013181,2]
[400053554,1767053827291,-151.3,0.00013181,2]
[400053555,1767053828902,-431.25478895,0.00013181,2]
[400053556,1767053830315,-151.58141478,0.00013181,2]
[400053558,1767053872619,-35.55278812,0.00013181,2]
[400053559,1767053872647,-300.0,0.00013272,2]
[400053560,1767053872680,-256.0,0.00013272,2]
[400053561,1767053872710,-500.0,0.00013273,2]
[400053562,1767053872738,-515.78099865,0.00013273,2]
[400053563,1767053872768,-153.53707012,0.00013273,2]
[400053564,1767053872797,-500.0,0.00013273,2]
[400053565,1767053872824,-500.0,0.00013273,2]
[400053566,1767053872852,-500.0,0.00013273,2]
[400053567,1767053872885,-523.39310875,0.0001328,2]
[400053568,1767053872915,-500.0,0.0001328,2]
[400053569,1767053872947,-459.87915444,0.0001328,2]
[400053570,1767053872979,-11.72375984,0.0001328,2]
[400053571,1767053875464,-488.27624016,0.0001328,2]
[400053572,1767053875495,-193.99265661,0.0001328,2]
[400053573,1767053875529,-357.7876258,0.0001328,2]
[400053574,1767053875560,-500.0,0.0001328,2]
[400053575,1767053875591,-500.0,0.0001328,2]
[400053576,1767053875623,-500.0,0.0001328,2]
[400053577,1767053875655,-500.0,0.0001328,2]
[400053578,1767053875689,-500.0,0.0001328,2]
[400053579,1767053875722,-500.0,0.0001328,2]
[400053580,1767053875757,-500.0,0.0001328,2]
[400053581,1767053875788,-419.89695486,0.0001328,2]
[400053582,1767053878663,-80.10304514,0.0001328,2]
[400053583,1767053878700,-500.0,0.0001328,2]
[400053584,1767053878732,-499.99999999,0.0001328,2]
[400053585,1767053878763,-500.0,0.0001328,2]
[400053586,1767053878795,-500.0,0.0001328,2]
[400053587,1767053878823,-500.0,0.0001328,2]
[400053588,1767053878854,-500.0,0.0001328,2]
[400053589,1767053878887,-500.0,0.0001328,2]
[400053590,1767053878916,-500.0,0.0001328,2]
[400053591,1767053878947,-500.0,0.0001328,2]
[400053592,1767053878976,-339.80390974,0.0001328,2]
[400053593,1767053879218,-160.19609026,0.0001328,2]
[400053594,1767053879252,-500.0,0.0001328,2]
[400053595,1767053879288,-500.0,0.0001328,2]
[400053596,1767053879319,-500.0,0.0001328,2]
[400053597,1767053879353,-500.0,0.0001328,2]
[400053598,1767053879388,-500.0,0.0001328,2]
[400053599,1767053879419,-382.72459251,0.0001328,2]
[400053600,1767053879452,-500.0,0.0001328,2]
[400053601,1767053879484,-500.0,0.0001328,2]
[400053602,1767053879516,-434.8887472,0.0001328,2]
[400053603,1767053879548,-500.0,0.0001328,2]
[400053604,1767053879633,-500.0,0.0001328,2]
[400053605,1767053879666,-650.0,0.0001328,2]
[400053606,1767053880119,-6524.82112102,0.00013281,2]
[400053607,1767053880134,-10000.01,0.00013281,2]
[400053608,1767053880167,-3106.52456334,0.00013281,2]
[400053609,1767053880190,-3786.96087332,0.00013281,2]
[400053610,1767053880199,-3106.52456334,0.00013282,2]
[400053611,1767053880213,-10000.01,0.00013282,2]
[400053612,1767053880229,-10000.01,0.00013282,2]
[400053613,1767053880243,-6893.48543666,0.00013282,2]
[400053614,1767053880394,5000.0,0.00013172,2]
[400053615,1767053884535,-10000.01,0.00013282,2]
[400053616,1767053884656,-10000.01,0.00013282,2]
[400053617,1767053884943,-10000.01,0.00013282,2]
[400053618,1767053887556,-10000.01,0.00013282,2]
[400053619,1767053887663,-10000.01,0.00013282,2]
[400053620,1767053887771,-10000.01,0.00013282,2]
[400053621,1767053887912,-10000.01,0.00013282,2]
[400053622,1767053888149,-10000.01,0.00013282,2]
[400053623,1767053888190,-10000.01,0.00013282,2]
[400053624,1767053893648,-10000.01,0.00013282,2]
[400053625,1767053893756,-10000.01,0.00013282,2]
[400053626,1767053893886,-10000.01,0.00013282,2]
[400053627,1767053896443,858.20185189,0.00013172,2]
[400053628,1767053896703,-10000.01,0.00013282,2]
[400053629,1767053899856,-10000.01,0.00013282,2]
[400053630,1767053900096,-10000.01,0.00013282,2]
[400053631,1767053900204,-10000.01,0.00013282,2]
[400053632,1767053900322,-10000.01,0.00013282,2]
[400053633,1767053900439,-10000.01,0.00013282,2]
[400053634,1767053900565,-10000.01,0.00013282,2]
[400053635,1767053900715,-10000.01,0.00013282,2]
[400053636,1767053902796,-10000.01,0.00013282,2]
[400053637,1767053905788,-10000.01,0.00013282,2]
[400053638,1767053905911,-10000.01,0.00013282,2]
[400053639,1767053906030,-10000.01,0.00013282,2]
[400053640,1767053906150,-10000.01,0.00013282,2]
[400053641,1767053906274,-10000.01,0.00013282,2]
[400053642,1767053906406,-10000.01,0.00013282,2]
[400053643,1767053906525,-10000.01,0.00013282,2]
[400053644,1767053919121,5000.0,0.00013172,2]
[400053645,1767053924415,-10000.01,0.00013282,2]
[400053646,1767053924612,-10000.01,0.00013282,2]
[400053647,1767053924747,-10000.01,0.00013282,2]
[400053648,1767053924854,-10000.01,0.00013282,2]
[400053649,1767053925027,-10000.01,0.00013282,2]
[400053650,1767053925141,-10000.01,0.00013282,2]
[400053651,1767053925251,-10000.01,0.00013282,2]
[400053652,1767053925364,-10000.01,0.00013282,2]
[400053653,1767053925465,-10000.01,0.00013282,2]
[400053654,1767053927092,-10000.01,0.00013282,2]
[400053655,1767053927640,5000.0,0.00013172,2]
[400053656,1767053930334,-10000.01,0.00013282,2]
[400053657,1767053933172,-10000.01,0.00013282,2]
[400053658,1767053936248,-10000.01,0.00013282,2]
[400053659,1767053943387,5000.0,0.00013172,2]
[400053660,1767053951143,5000.0,0.00013172,2]
[400053661,1767053954565,-500.0,0.00013273,2]
[400053662,1767053954596,-300.0,0.00013281,2]
[400053663,1767053954645,-8400.01,0.00013282,2]
[400053664,1767053954830,-10000.01,0.00013282,2]
[400053665,1767053954986,-10000.01,0.00013282,2]
[400053666,1767053955071,-10000.01,0.00013282,2]
[400053667,1767053957464,-10000.01,0.00013282,2]
[400053668,1767053963570,-207.30691018,0.00013172,2]
[400053669,1767053963603,-500.0,0.0001328,2]
[400053670,1767053963635,-500.0,0.0001328,2]
[400053671,1767053963664,-400.48199547,0.0001328,2]
[400053672,1767053963698,-500.0,0.00013281,2]
[400053673,1767053963728,-500.0,0.00013281,2]
[400053674,1767053963757,-500.0,0.00013281,2]
[400053675,1767053963791,-500.0,0.00013281,2]
[400053676,1767053963822,-500.0,0.00013281,2]
[400053677,1767053964164,-1784.4321887,0.00013282,2]
[400053678,1767053969756,-500.0,0.00013273,2]
[400053679,1767053969787,-500.0,0.0001328,2]
[400053680,1767053969814,-500.0,0.0001328,2]
[400053681,1767053969843,-500.0,0.0001328,2]
[400053682,1767053969874,-500.0,0.0001328,2]
[400053683,1767053969905,-500.0,0.0001328,2]
[400053684,1767053969936,-500.0,0.0001328,2]
[400053685,1767053969966,-500.0,0.0001328,2]
[400053686,1767053969996,-500.0,0.0001328,2]
[400053687,1767053970027,-500.0,0.0001328,2]
[400053688,1767053970203,-0.01,0.0001328,2]
[400053689,1767053972717,-521.62218173,0.0001328,2]
[400053690,1767053972746,-500.0,0.0001328,2]
[400053691,1767053972777,-500.0,0.00013281,2]
[400053692,1767053972842,-6956.76563654,0.00013282,2]
[400053693,1767053974024,5000.0,0.00013172,2]
[400053694,1767053975856,-10000.01,0.00013282,2]
[400053695,1767053976041,-10000.01,0.00013282,2]
[400053696,1767053976157,-10000.01,0.00013282,2]
[400053697,1767053976275,-10000.01,0.00013282,2]
[400053698,1767053981923,-10000.01,0.00013282,2]
[400053699,1767053982074,-10000.01,0.00013282,2]
[400053700,1767053982189,-10000.01,0.00013282,2]